bitfinex-derivatives/quotes_ETHF0:USTF0_20250807
["timestamp","ask_amount","ask_price","bid_price","bid_amount"]
[1754593611881,2.20941,3826.8,3826.7,3.2078]
[1754593612082,2.20941,3826.8,3826.7,21.0188]
[1754593612682,2.20941,3826.8,3826.7,21.3043]
[1754593612893,1.6869,3826.8,3826.7,22.7349]
[1754593613089,0.92471519,3827.0,3826.8,0.52251]
[1754593613288,0.92471519,3827.0,3826.9,19.5261]
[1754593614194,0.21600166,3827.0,3826.9,19.5261]
[1754593614987,40.8,3827.1,3827.0,1.20669]
[1754593615189,41.71783767,3827.1,3827.0,2.23859]
[1754593615490,41.71782911,3827.1,3827.0,2.23859]
[1754593615995,41.01282268,3827.1,3827.0,2.23859]
[1754593617695,41.30442268,3827.1,3827.0,2.23859]
[1754593617895,41.01282268,3827.1,3827.0,2.23859]
[1754593618195,41.71761534,3827.1,3827.0,2.23859]
[1754593618701,41.01282268,3827.1,3827.0,2.23859]
[1754593619591,41.30442268,3827.1,3827.0,2.23859]
[1754593620306,42.01322268,3827.1,3827.0,1.93799]
[1754593620495,42.71798473,3827.1,3827.0,18.32949]
[1754593620693,41.8004,3827.1,3827.0,18.32949]
[1754593620897,42.01158717,3827.1,3827.0,18.32949]
[1754593621587,42.01158717,3827.1,3827.0,19.74499]
[1754593621796,42.01158717,3827.1,3827.0,20.04559]
[1754593623092,42.01158717,3827.1,3827.0,19.29919]
[1754593623296,42.01158717,3827.1,3827.0,19.74499]
[1754593623496,42.01158717,3827.1,3827.0,20.04559]
[1754593625099,42.01158717,3827.1,3827.0,19.74499]
[1754593625506,42.01158717,3827.1,3827.0,20.04559]
[1754593625699,41.8004,3827.1,3827.0,20.04559]
[1754593625899,42.01164798,3827.1,3827.0,20.04559]
[1754593626101,42.01164798,3827.1,3827.0,19.74499]
[1754593626402,42.01164798,3827.1,3827.0,20.04559]
[1754593626806,42.01164798,3827.1,3827.0,18.32949]
[1754593628203,42.01164798,3827.1,3827.0,20.04559]
[1754593628596,42.01164798,3827.1,3827.0,18.81559]
[1754593628799,41.8004,3827.1,3827.0,18.81559]
[1754593629000,42.01176219,3827.1,3827.0,19.74499]
[1754593629198,42.01176219,3827.1,3827.0,20.04559]
[1754593629619,42.01176219,3827.1,3827.0,18.32949]
[1754593630208,42.01176219,3827.1,3827.0,17.807]
[1754593630599,41.8004,3827.1,3827.0,17.807]
[1754593630799,1.20901,3826.8,3826.4,1.0319]
[1754593631007,1.6869,3826.4,3826.3,3.73038]
[1754593631308,1.6869,3826.4,3826.3,21.53638]
[1754593631515,42.4869,3826.4,3826.3,21.53638]
[1754593634207,42.4869,3826.4,3826.3,18.32858]
[1754593635210,42.4869,3826.4,3826.3,17.806]
[1754593636708,0.7442,3826.3,3826.2,0.52259]
[1754593636901,1.7111,3826.3,3826.2,18.32959]
[1754593638002,1.7111,3826.3,3826.2,17.807]
[1754593639118,42.5111,3826.3,3826.2,18.1033]
[1754593639308,42.5111,3826.3,3826.2,18.7944]
[1754593639606,42.5111,3826.3,3826.2,19.244]
[1754593639812,42.5111,3826.3,3826.2,19.532]
[1754593641812,42.5111,3826.3,3826.2,18.7944]
[1754593642114,42.5111,3826.3,3825.7,1.30665]
[1754593642115,1.7111,3825.5,3825.1,6.4939565]
[1754593642406,1.7111,3825.2,3825.1,7.3130065]
[1754593642711,1.7111,3825.2,3825.1,3.73055]
[1754593643104,42.5111,3825.2,3825.1,4.71795]
[1754593643306,42.5111,3825.2,3825.1,5.45555]
[1754593644409,42.5111,3825.2,3825.1,5.16755]
[1754593645012,42.5111,3825.2,3825.1,22.97555]
[1754593645204,42.5111,3825.2,3825.1,23.26355]
[1754593645701,0.479,3825.0,3824.9,1.31727]
[1754593646004,2.23388,3825.0,3824.8,0.52278]
[1754593646206,2.23388,3825.0,3824.9,17.809]
[1754593646712,2.23388,3825.0,3824.9,18.1053]
[1754593646907,2.23388,3825.0,3824.9,18.307]
[1754593647211,2.23389,3824.8,3824.6,21.0951565]
[1754593647512,1.7111,3824.7,3824.6,17.809]
[1754593647711,42.5111,3824.7,3824.6,17.809]
[1754593648306,1.18962,3824.6,3824.4,4.1052965]
[1754593648506,0.7442,3824.5,3824.4,4.1052965]
[1754593648707,1.7111,3824.5,3824.4,4.1052965]
[1754593649008,1.28630554,3824.5,3824.4,5.5339965]
[1754593650607,0.79670554,3824.5,3824.4,5.5339965]
[1754593651206,0.34680554,3824.5,3824.4,5.5339965]
[1754593651509,42.07282,3824.7,3824.6,0.498]
[1754593651710,42.08342,3824.7,3824.6,18.1073]
[1754593652216,1.01704,3824.5,3824.4,21.3871565]
[1754593652512,1.77764,3824.5,3824.4,21.3871565]
[1754593652709,1.77764,3824.5,3824.4,17.813]
[1754593653012,1.77764,3824.5,3824.4,18.1093]
[1754593653511,1.2548,3824.5,3824.4,18.311]
[1754593653703,1.2548,3824.5,3824.4,19.538]
[1754593655018,40.8,3824.7,3824.6,1.725]
[1754593655204,1.7501,3824.8,3824.7,1.2356]
[1754593655408,1.3002,3824.8,3824.7,1.725]
[1754593655613,42.1277,3824.8,3824.7,1.725]
[1754593655809,42.1277,3824.8,3824.7,1.2754]
[1754593656008,41.817,3824.8,3824.6,17.814]
[1754593656213,1.2548,3824.7,3824.6,18.1103]
[1754593656709,1.2442,3824.7,3824.6,19.251]
[1754593656910,1.2273,3824.7,3824.6,19.539]
[1754593657108,42.0273,3824.7,3824.6,19.539]
[1754593657310,40.8,3824.7,3824.6,19.539]
[1754593658010,1.16042,3825.4,3825.3,0.6911]
[1754593658207,1.44992,3825.4,3825.3,1.725]
[1754593658606,2.23382,3825.4,3825.3,1.725]
[1754593659005,43.03382,3825.4,3825.3,1.725]
[1754593660916,41.9167,3825.4,3825.3,1.725]
[1754593661112,42.5111,3825.4,3825.3,1.725]
[1754593663417,2.23803,3825.3,3825.2,19.31123]
[1754593663606,2.23803,3825.3,3825.2,20.02643]
[1754593664918,1.7153,3825.3,3825.2,20.02643]
[1754593666015,1.1332,3825.3,3825.2,20.02643]
[1754593666819,0.9387,3825.3,3825.2,20.02643]
[1754593667020,0.5005,3825.3,3825.2,20.02643]
[1754593667515,40.8,3825.4,3825.2,22.23333]
[1754593667715,40.8,3825.4,3825.3,1.6897]
[1754593668414,40.8,3825.4,3825.3,1.89689958]
[1754593669819,40.8,3825.4,3825.3,1.6897]
[1754593670723,40.8,3825.4,3825.3,1.89543955]
[1754593670920,40.8,3825.4,3825.3,1.6897]
[1754593672115,40.8,3825.4,3825.3,1.90054508]
[1754593672625,41.8203,3825.4,3825.3,19.5017]
[1754593672921,41.2382,3825.4,3825.3,19.5017]
[1754593675518,41.8203,3825.4,3825.3,19.5017]
[1754593677722,41.2382,3825.4,3825.3,19.5017]
[1754593678122,40.8,3825.4,3825.3,19.5017]
[1754593679422,41.2382,3825.4,3825.3,19.5017]
[1754593680025,41.8203,3825.4,3825.3,19.5017]
[1754593680223,41.2382,3825.4,3825.3,19.5017]
[1754593682222,0.9387,3825.9,3825.8,1.21146]
[1754593682426,1.19334524,3826.7,3826.6,0.1983]
[1754593682630,1.65714524,3826.7,3826.6,19.73555]
[1754593682827,42.45714524,3826.7,3826.6,19.73555]
[1754593683130,43.25630522,3826.7,3826.6,20.02125]
[1754593683325,43.25630522,3826.7,3826.6,18.52985]
[1754593683525,43.03924524,3826.7,3826.6,18.52985]
[1754593683919,43.56177524,3826.7,3826.5,0.52256]
[1754593684122,43.56177524,3826.7,3826.4,3.4935]
[1754593684123,2.95630524,3826.6,3826.4,3.73037]
[1754593684326,2.95630524,3826.6,3826.5,17.808]
[1754593684725,2.95630524,3826.6,3826.4,3.2078]
[1754593684726,1.7153,3826.5,3826.4,3.2078]
[1754593685031,1.7153,3826.3,3826.2,0.52259]
[1754593685230,1.7153,3826.3,3826.2,18.33059]
[1754593686028,42.5153,3826.3,3826.2,20.02029]
[1754593686228,43.23374524,3826.3,3826.2,20.02029]
[1754593686445,43.23374524,3826.3,3826.2,19.58749]
[1754593686639,43.23374524,3826.3,3826.2,19.29219]
[1754593687235,43.23374524,3826.3,3826.2,18.33059]
[1754593687433,43.23374524,3826.3,3826.2,18.61629]
[1754593687630,43.23374524,3826.3,3826.2,19.09389]
[1754593687935,43.23374524,3826.3,3826.2,18.33059]
[1754593688433,43.23374524,3826.3,3826.2,17.808]
[1754593689229,43.23374524,3826.3,3826.2,18.0937]
[1754593689430,43.23374524,3826.3,3826.2,18.3761]
[1754593689630,43.23374524,3826.3,3826.2,18.5713]
[1754593690035,43.23374524,3826.3,3826.2,18.7696]
[1754593691029,43.23374524,3826.3,3826.2,18.4872]
[1754593691338,43.23374524,3826.3,3826.2,18.0053]
[1754593691538,43.23374524,3826.3,3826.2,0.6792]
[1754593691731,43.23374524,3826.3,3826.2,18.7686]
[1754593692932,43.23374524,3826.3,3826.2,19.2217]
[1754593693532,43.23374524,3826.3,3826.2,19.5022]
[1754593693533,42.21344524,3826.3,3826.2,19.5022]
[1754593693831,43.22744524,3826.3,3826.2,19.5022]
[1754593694537,41.7459,3826.3,3826.2,19.5022]
[1754593694836,42.3145,3826.3,3826.2,19.5022]
[1754593695227,42.3145,3826.3,3826.2,17.807]
[1754593695428,42.3145,3826.3,3826.2,18.1806]
[1754593695638,42.0225,3826.3,3826.2,19.4833]
[1754593695837,42.3145,3826.3,3826.2,19.4833]
[1754593698535,42.3145,3826.3,3826.2,0.4531]
[1754593698838,1.2279,3825.5,3825.4,0.5227]
[1754593699039,1.6733,3825.5,3825.4,0.5227]
[1754593699537,3.2078,3826.4,3825.5,1.30674]
[1754593699740,0.21706052,3826.8,3825.5,1.30674]
[1754593699741,1.6733,3826.2,3826.1,0.89621]
[1754593700242,42.4733,3826.2,3826.1,0.89621]
[1754593700636,42.4733,3826.2,3826.1,1.18291]
[1754593701035,42.4733,3826.2,3826.1,1.41211]
[1754593702941,42.4733,3826.2,3826.1,1.18291]
[1754593705539,40.8,3826.2,3826.1,1.41211]
[1754593706544,41.0766,3826.2,3826.1,1.41211]
[1754593707138,40.8,3826.2,3826.1,1.41211]
[1754593707746,41.0766,3826.2,3826.1,1.41211]
[1754593708245,40.8,3826.2,3826.1,1.41211]
[1754593709646,41.0766,3826.2,3826.1,1.41211]
[1754593710746,41.522,3826.2,3826.1,1.41211]
[1754593711545,41.522,3826.2,3826.1,0.52261]
[1754593711751,41.814,3826.2,3826.1,1.18291]
[1754593712049,40.8,3826.2,3826.1,1.41211]
[1754593712640,41.0766,3826.2,3826.1,1.41211]
[1754593712845,41.814,3826.2,3826.1,1.18291]
[1754593716354,41.814,3826.2,3826.1,0.89621]
[1754593716558,41.814,3826.2,3826.1,1.18291]
[1754593717457,41.814,3826.2,3826.1,0.52261]
[1754593720868,42.3366,3826.2,3826.1,0.52261]
[1754593721058,41.814,3826.2,3826.1,0.52261]
[1754593721258,41.814,3826.2,3826.1,0.71331]
[1754593721458,41.814,3826.2,3826.1,1.18291]
[1754593724965,41.814,3826.2,3826.1,0.71331]
[1754593725566,41.814,3826.2,3826.1,1.00711]
[1754593726965,41.814,3826.2,3826.1,1.20091]
[1754593728869,41.0766,3826.2,3826.1,1.20091]
[1754593729058,41.0766,3826.2,3826.1,0.94591]
[1754593729265,40.8,3826.2,3826.1,1.43191]
[1754593729466,41.0939,3826.2,3826.1,1.43191]
[1754593729766,41.7879,3826.2,3826.1,1.43191]
[1754593730166,41.7879,3826.2,3826.1,1.20241]
[1754593731065,41.7879,3826.2,3826.1,1.43191]
[1754593734672,41.7879,3826.2,3826.1,1.20241]
[1754593747378,41.7879,3826.2,3826.1,0.90861]
[1754593747579,41.7879,3826.2,3826.1,0.52261]
[1754593751279,41.7879,3826.2,3826.1,0.81641]
[1754593752580,41.7879,3826.2,3826.1,1.20241]
[1754593756084,41.7879,3826.2,3826.1,0.52261]
[1754593757281,41.7879,3826.2,3826.1,0.80251]
[1754593757583,41.7879,3826.2,3826.1,1.19511]
[1754593758887,41.7879,3826.2,3826.1,0.52261]
[1754593759874,41.7879,3826.2,3826.1,1.19511]
[1754593760277,41.0939,3826.2,3826.1,1.42461]
[1754593760888,0.21706052,3826.8,3826.7,1.00223]
[1754593761184,0.21706052,3826.8,3826.7,22.43133]
[1754593761388,0.2989,3827.3,3827.2,0.91507]
[1754593761685,1.7169,3827.3,3827.2,18.32147]
[1754593761885,42.5169,3827.3,3827.2,18.32147]
[1754593762082,43.22989974,3827.3,3827.2,18.60137]
[1754593762281,42.5169,3827.3,3827.2,18.99397]
[1754593762887,42.5169,3827.3,3827.2,19.22347]
[1754593763189,43.22576017,3827.3,3827.2,19.22347]
[1754593764192,42.2222,3827.3,3827.2,19.22347]
[1754593764392,41.7747,3827.3,3827.2,19.22347]
[1754593764889,41.5855,3827.3,3827.2,19.22347]
[1754593765398,41.0989,3827.3,3827.2,19.22347]
[1754593765577,41.5464,3827.3,3827.2,19.22347]
[1754593767087,41.8411,3827.3,3827.2,19.22347]
[1754593768489,41.8411,3827.3,3827.2,18.99397]
[1754593769092,41.8411,3827.3,3827.2,18.71407]
[1754593769304,41.8411,3827.3,3827.2,18.52127]
[1754593769689,41.8411,3827.3,3827.2,18.80117]
[1754593769890,41.8411,3827.3,3827.2,18.99397]
[1754593771193,41.8411,3827.3,3827.2,18.71407]
[1754593771794,41.8411,3827.3,3827.2,18.32147]
[1754593771994,41.8411,3827.3,3827.2,18.31747]
[1754593777603,41.8411,3827.3,3827.2,18.59737]
[1754593777795,41.8411,3827.3,3827.2,18.71007]
[1754593778095,41.8411,3827.3,3827.2,18.98997]
[1754593778302,41.0989,3827.3,3827.2,19.21947]
[1754593778897,41.8411,3827.3,3827.2,19.21947]
[1754593779303,41.8411,3827.3,3827.2,0.52247]
[1754593779503,41.8411,3827.3,3827.2,17.794]
[1754593783898,41.8411,3827.3,3827.2,18.4785]
[1754593785606,41.8411,3827.3,3827.2,17.794]
[1754593787513,41.8411,3827.3,3827.2,18.4785]
[1754593788203,40.8,3827.3,3827.2,18.7075]
[1754593788605,41.1042,3827.3,3827.2,18.7075]
[1754593789803,41.1042,3827.3,3827.2,21.9153]
[1754593790804,40.8,3827.3,3827.2,21.9153]
[1754593791009,40.8,3827.3,3827.2,22.0453]
[1754593791208,40.8,3827.3,3827.2,21.9153]
[1754593791510,41.1042,3827.3,3827.2,21.9153]
[1754593792712,41.1042,3827.3,3827.2,21.9143]
[1754593792907,40.8,3827.3,3827.2,21.9143]
[1754593793809,41.1042,3827.3,3827.2,21.9143]
[1754593794708,41.8208,3827.3,3827.2,21.9143]
[1754593795902,41.5234,3827.3,3827.2,21.9143]
[1754593796106,41.1042,3827.3,3827.2,21.9143]
[1754593796901,41.8208,3827.3,3827.2,21.9143]
[1754593797611,41.8208,3827.3,3827.2,21.6853]
[1754593798105,41.5234,3827.3,3827.2,21.9143]
[1754593798416,41.1042,3827.3,3827.2,21.9143]
[1754593798600,41.8208,3827.3,3827.2,21.9143]
[1754593798999,41.5234,3827.3,3827.2,21.9143]
[1754593799405,41.1042,3827.3,3827.2,21.9143]
[1754593800508,41.8208,3827.3,3827.2,21.0008]
[1754593801608,41.8208,3827.3,3827.2,21.4843]
[1754593802310,41.8208,3827.3,3827.2,21.6853]
[1754593802702,41.8208,3827.3,3827.2,21.1885]
[1754593802916,41.8208,3827.3,3827.2,21.0008]
[1754593803614,41.8208,3827.3,3827.2,21.4843]
[1754593803915,41.8208,3827.3,3827.2,21.6853]
[1754593805412,41.8208,3827.3,3827.2,21.9143]
[1754593805718,41.8208,3827.3,3827.2,21.6853]
[1754593807513,41.8208,3827.3,3827.2,21.0008]
[1754593809610,41.8208,3827.3,3827.2,21.2966]
[1754593809806,41.8208,3827.3,3827.2,21.4843]
[1754593813119,41.8208,3827.3,3827.2,21.6853]
[1754593816617,41.8208,3827.3,3827.2,21.2018]
[1754593817021,41.8208,3827.3,3827.2,21.6859]
[1754593817617,41.8208,3827.3,3827.2,3.2078]
[1754593817823,1.7081,3827.2,3827.1,0.52247]
[1754593818023,1.7081,3827.2,3827.1,18.30947]
[1754593818726,1.7081,3827.2,3827.1,17.787]
[1754593819320,42.5081,3827.2,3827.1,17.787]
[1754593825728,42.5081,3827.2,3827.0,0.52249]
[1754593826026,1.7081,3826.7,3826.6,0.52255]
[1754593826226,1.7081,3826.7,3826.6,18.30955]
[1754593826431,42.5081,3826.7,3826.6,18.30955]
[1754593826934,42.5081,3826.7,3826.6,18.98775]
[1754593829236,42.5081,3826.7,3826.6,18.30955]
[1754593830435,42.5081,3826.7,3826.6,18.98775]
[1754593835545,42.5081,3826.7,3826.6,17.787]
[1754593835944,1.20115,3826.6,3826.5,0.52255]
[1754593836146,2.23065,3826.6,3826.5,0.52255]
[1754593836448,1.7081,3826.6,3826.5,0.52255]
[1754593837144,42.5081,3826.6,3826.5,0.52255]
[1754593840145,42.5081,3826.6,3826.4,17.787]
[1754593840146,1.20116,3826.5,3826.4,18.30957]
[1754593840344,2.23066,3826.5,3826.4,18.30957]
[1754593840549,1.7081,3826.5,3826.4,18.30957]
[1754593840756,42.5081,3826.5,3826.4,18.60517]
[1754593841149,42.5081,3826.5,3826.4,18.98777]
[1754593843356,41.7773,3826.5,3826.4,18.98777]
[1754593843554,42.1934,3826.5,3826.4,19.21717]
[1754593843958,42.4825,3826.5,3826.4,19.21717]
[1754593845961,42.4825,3826.5,3826.4,18.98777]
[1754593847858,42.4825,3826.5,3826.4,18.30957]
[1754593849564,42.4825,3826.5,3826.4,18.98967]
[1754593853157,41.3906,3826.5,3826.4,22.19747]
[1754593853465,40.8,3826.5,3826.4,22.42687]
[1754593853867,41.1021,3826.5,3826.4,22.42687]
[1754593854566,41.8073,3826.5,3826.4,22.42687]
[1754593855167,41.5182,3826.5,3826.4,22.42687]
[1754593855371,41.1021,3826.5,3826.4,22.42687]
[1754593856065,41.5182,3826.5,3826.4,22.42687]
[1754593856369,41.8073,3826.5,3826.4,22.42687]
[1754593856868,41.1021,3826.5,3826.4,22.19747]
[1754593857064,41.3912,3826.5,3826.4,22.19747]
[1754593857270,41.8073,3826.5,3826.4,22.19747]
[1754593857867,41.8073,3826.5,3826.4,22.19447]
[1754593858370,41.8073,3826.5,3826.4,21.90277]
[1754593858572,41.8073,3826.5,3826.4,18.69497]
[1754593858770,41.8073,3826.5,3826.4,18.50557]
[1754593858972,41.8073,3826.5,3826.4,18.79727]
[1754593859594,41.8073,3826.5,3826.4,17.784]
[1754593862581,0.2861,3825.8,3825.7,0.3884]
[1754593862774,1.6897,3825.8,3825.7,18.69507]
[1754593863168,1.6897,3825.8,3825.7,18.98677]
[1754593864475,1.6897,3825.8,3825.7,19.21617]
[1754593867477,4.1923,3826.4,3826.3,0.52259]
[1754593867682,4.1923,3826.4,3826.3,0.91099]
[1754593867883,0.6824,3826.9,3826.8,0.3884]
[1754593868179,42.1876,3826.9,3826.8,18.4641]
[1754593868570,42.4897,3826.9,3826.8,18.4641]
[1754593868970,42.4897,3826.9,3826.8,18.98662]
[1754593869374,42.4897,3826.9,3826.8,18.69492]
[1754593870578,42.4897,3826.9,3826.2,3.2078]
[1754593870783,1.6897,3826.3,3826.2,0.5226]
[1754593870972,1.6897,3826.3,3826.2,18.3056]
[1754593871477,42.4897,3826.3,3826.2,18.694]
[1754593871678,42.4897,3826.3,3826.2,18.9857]
[1754593872692,42.4897,3826.3,3826.2,19.2151]
[1754593874187,42.4897,3826.3,3826.2,17.783]
[1754593874584,1.4161,3826.2,3826.1,0.52259]
[1754593874782,1.6925,3826.2,3826.1,18.30559]
[1754593875084,1.6925,3826.2,3826.1,18.50349]
[1754593875285,1.6925,3826.2,3826.1,18.78859]
[1754593875585,1.6925,3826.2,3826.1,18.98209]
[1754593880888,1.6925,3826.2,3826.1,18.30559]
[1754593881987,1.6925,3826.2,3826.1,18.59069]
[1754593882391,1.6925,3826.2,3826.1,18.78859]
[1754593882984,1.6925,3826.2,3826.1,18.98209]
[1754593890995,1.6925,3826.2,3826.1,18.49909]
[1754593891408,1.6925,3826.2,3826.0,0.5226]
[1754593891409,1.6925,3826.1,3826.0,0.5226]
[1754593891593,1.6925,3826.1,3826.0,17.78]
[1754593891788,2.21511,3826.0,3825.9,0.52261]
[1754593891988,2.21511,3826.0,3825.6,0.2851]
[1754593891989,1.6925,3825.7,3825.6,0.2851]
[1754593892202,1.6925,3825.1,3825.0,4.40705]
[1754593892500,1.6925,3825.1,3825.0,22.18705]
[1754593893001,42.4925,3825.1,3825.0,22.18705]
[1754593894894,42.4925,3825.1,3825.0,22.41625]
[1754593895401,42.4925,3825.1,3825.0,17.781]
[1754593900000,42.4925,3825.1,3825.0,18.0661]
[1754593901301,42.4925,3825.1,3825.0,17.781]
[1754593903105,42.4925,3825.1,3825.0,18.0574]
[1754593903301,42.4925,3825.1,3825.0,18.2457]
[1754593903500,42.4925,3825.1,3825.0,18.4392]
[1754593905003,41.5464,3825.1,3825.0,18.6688]
[1754593906107,40.8,3825.1,3825.0,18.6688]
[1754593906410,40.8,3825.1,3825.0,21.8766]
[1754593907912,41.0864,3825.1,3825.0,21.8766]
[1754593910406,40.8,3825.1,3825.0,21.8766]
[1754593910808,4.8957,3825.9,3825.8,1.18694]
[1754593911112,1.30625,3826.9,3826.1,0.91049]
[1754593911113,1.6879,3826.2,3826.1,0.91049]
[1754593911412,1.3984,3826.5,3826.4,0.91045]
[1754593911600,1.6879,3826.5,3826.4,1.18685]
[1754593911799,42.4879,3826.5,3826.4,1.18685]
[1754593912109,42.4879,3826.5,3826.4,0.6643]
[1754593912811,42.4879,3826.5,3826.4,0.3879]
[1754593914308,42.4879,3826.5,3826.4,0.6643]
[1754593914809,42.1984,3826.5,3826.4,0.6643]
[1754593915107,41.0864,3826.5,3826.4,0.8939]
[1754593915505,40.8,3826.5,3826.4,0.8939]
[1754593916416,41.0864,3826.5,3826.4,0.8939]
[1754593918212,40.8,3826.5,3826.4,0.8939]
[1754593918914,41.0864,3826.5,3826.4,0.8939]
[1754593920015,40.8,3826.5,3826.4,0.8939]
[1754593920215,41.5197,3826.5,3826.4,0.8939]
[1754593920710,41.8092,3826.5,3826.4,0.6643]
[1754593921807,41.8092,3826.5,3826.4,0.8939]
[1754593922312,41.5197,3826.5,3826.4,0.8939]
[1754593922535,41.0864,3826.5,3826.4,0.8939]
[1754593923110,41.5197,3826.5,3826.4,0.8939]
[1754593923619,1.6879,3827.2,3827.1,1.18676]
[1754593923810,1.6879,3827.2,3827.1,18.96276]
[1754593924010,1.6879,3827.2,3827.1,18.68636]
[1754593924314,1.6879,3827.2,3827.1,18.96276]
[1754593924512,42.4879,3827.2,3827.1,18.96276]
[1754593924713,42.4879,3827.2,3827.1,18.68636]
[1754593925012,41.0864,3827.2,3827.1,19.19236]
[1754593925417,40.8,3827.2,3827.1,19.19236]
[1754593925809,41.0864,3827.2,3827.1,19.19236]
[1754593927720,41.5197,3827.2,3827.1,19.19236]
[1754593929215,41.8092,3827.2,3827.1,19.19236]
[1754593932219,41.8092,3827.2,3827.1,18.96276]
[1754593932519,41.8092,3827.2,3827.1,18.29846]
[1754593932716,41.8092,3827.2,3827.1,18.96276]
[1754593932917,41.0864,3827.2,3827.1,19.19236]
[1754593933312,0.2917,3827.5,3827.4,0.1949]
[1754593933516,1.4234,3827.8,3827.7,0.91758]
[1754593933815,1.1253,3827.8,3827.7,19.26588]
[1754593934017,0.7848,3828.0,3827.9,0.91755]
[1754593934226,1.4234,3828.0,3827.9,22.47265]
[1754593934416,42.2234,3828.0,3827.9,22.47265]
[1754593935520,42.5151,3828.0,3827.9,22.47265]
[1754593938920,40.8,3828.0,3827.9,22.47265]
[1754593939120,41.2361,3828.0,3827.9,22.47265]
[1754593939322,41.8259,3828.0,3827.9,22.47265]
[1754593943613,41.8259,3828.0,3827.9,21.89535]
[1754593944017,41.8259,3828.0,3827.9,3.73015]
[1754593944229,42.0613944,3828.0,3827.9,21.49615]
[1754593944420,42.0613944,3828.0,3827.9,22.46865]
[1754593945420,42.0613944,3828.0,3827.9,22.18775]
[1754593945729,42.0613944,3828.0,3827.9,21.69645]
[1754593946127,42.0613944,3828.0,3827.9,21.89135]
[1754593946520,42.0613944,3828.0,3827.9,21.69105]
[1754593947820,42.0613944,3828.0,3827.9,3.73015]
[1754593948022,42.0613944,3828.0,3827.9,21.49515]
[1754593948829,42.0613944,3828.0,3827.9,21.89035]
[1754593949123,42.0613944,3828.0,3827.9,22.46765]
[1754593949324,42.0613944,3828.0,3827.9,21.89035]
[1754593949723,42.0613944,3828.0,3827.9,21.49515]
[1754593951430,42.0613944,3828.0,3827.9,22.46765]
[1754593951730,42.0613944,3828.0,3827.9,22.17125]
[1754593951922,42.0613944,3828.0,3827.9,21.69005]
[1754593953030,42.0649702,3828.0,3827.9,21.69005]
[1754593953548,42.06497374,3828.0,3827.9,21.69005]
[1754593953728,42.06497374,3828.0,3827.9,22.26735]
[1754593953929,42.06497374,3828.0,3827.9,22.46765]
[1754593954230,42.06497374,3828.0,3827.9,3.73015]
[1754593954430,42.06497374,3828.0,3827.9,21.49415]
[1754593956033,42.06488904,3828.0,3827.9,21.49415]
[1754593959631,42.06488904,3828.0,3827.9,21.88935]
[1754593959854,42.06488904,3828.0,3827.9,22.46665]
[1754593960131,42.06488904,3828.0,3827.9,21.49415]
[1754593960725,42.06488904,3828.0,3827.9,3.73015]
[1754593960926,42.06488904,3828.0,3827.9,18.28535]
[1754593961124,42.06473195,3828.0,3827.9,18.28535]
[1754593962122,42.06469944,3828.0,3827.9,18.28535]
[1754593965233,41.03879944,3828.0,3827.9,18.66575]
[1754593965534,41.03879944,3828.0,3827.9,19.24915]
[1754593965735,42.08249944,3828.0,3827.9,19.24915]
[1754593967934,41.8437,3828.0,3827.9,19.24915]
[1754593968142,42.08334583,3828.0,3827.9,19.24915]
[1754593970243,42.08334583,3828.0,3827.9,18.66575]
[1754593970841,42.08334583,3828.0,3827.9,18.96425]
[1754593971138,42.08338446,3828.0,3827.9,19.24915]
[1754593971639,41.03968446,3828.0,3827.9,19.24915]
[1754593971850,41.48568446,3828.0,3827.9,19.24915]
[1754593972050,42.08338446,3828.0,3827.9,19.24915]
[1754593972645,41.8437,3828.0,3827.9,19.24915]
[1754593977755,41.8437,3828.0,3827.9,18.28535]
[1754593978551,41.8437,3828.0,3827.9,18.77035]
[1754593978754,41.8437,3828.0,3827.9,19.05525]
[1754593978955,41.8437,3828.0,3827.9,19.24915]
[1754593984760,41.8437,3828.0,3827.9,18.28535]
[1754593985663,41.8437,3828.0,3827.9,19.24915]
[1754593989762,41.8437,3828.0,3827.9,18.66275]
[1754593989964,41.8437,3828.0,3827.9,18.28235]
[1754593990367,2.23975,3827.9,3827.8,0.52235]
[1754593990756,2.23975,3827.9,3827.7,18.28137]
[1754593991065,1.7174,3827.8,3827.7,18.28137]
[1754593991266,41.7958,3827.8,3827.7,18.28137]
[1754593991462,42.2418,3827.8,3827.7,18.28137]
[1754593991859,42.2418,3827.8,3827.7,18.77377]
[1754593992262,42.2418,3827.8,3827.7,18.47527]
[1754593992463,42.2418,3827.8,3827.7,18.28137]
[1754593994270,42.2418,3827.8,3827.7,0.52237]
[1754593994472,42.2418,3827.8,3827.7,18.28137]
[1754593994864,41.7958,3827.8,3827.7,18.28137]
[1754593995063,42.2359,3827.8,3827.7,18.28137]
[1754593997470,42.2359,3827.8,3827.7,18.47767]
[1754593999572,42.2359,3827.8,3827.7,17.9553]
[1754593999774,0.6505,3827.6,3827.5,1.303]
[1754593999973,1.655,3827.6,3827.5,18.7765]
[1754594000574,1.655,3827.6,3827.5,19.062]
[1754594000776,1.655,3827.6,3827.5,19.251]
[1754594001170,42.455,3827.6,3827.5,19.251]
[1754594003578,42.455,3827.6,3827.5,1.492]
[1754594003778,42.455,3827.6,3827.5,19.251]
[1754594005174,40.8,3827.6,3827.5,19.251]
[1754594005674,1.1797,3828.4,3828.3,1.3145]
[1754594005977,1.1797,3828.4,3828.3,22.2803]